[Event "Live Chess"]
[Site "Chess.com"]
[Date "2023.05.20"]
[Round "-"]
[White "Chris_pea"]
[Black "whitedjohn"]
[Result "0-1"]
[WhiteElo "615"]
[BlackElo "1656"]
[TimeControl "300"]
[EndTime "10:14:57 PDT"]
[Termination "whitedjohn won by resignation"]

1. e4 {[%clk 0:04:54.7]} 1... Nf6 {[%clk 0:04:58.1]} 2. Nc3 {[%clk 0:04:45.9]}
2... d5 {[%clk 0:04:55.6]} 3. e5 {[%clk 0:04:41.6]} 3... Nfd7 {[%clk 0:04:53.6]}
4. d4 {[%clk 0:04:39.8]} 4... e6 {[%clk 0:04:52.1]} 5. Nf3 {[%clk 0:04:37]} 5...
c5 {[%clk 0:04:50.5]} 6. Be2 {[%clk 0:04:20.3]} 6... Nc6 {[%clk 0:04:49.2]} 7.
O-O {[%clk 0:04:13.8]} 7... cxd4 {[%clk 0:04:42.5]} 8. Nxd4 {[%clk 0:04:05.5]}
8... Ndxe5 {[%clk 0:04:41.1]} 9. Re1 {[%clk 0:03:59.4]} 9... Bc5 {[%clk
0:04:30.3]} 10. Bb5 {[%clk 0:03:49]} 10... O-O {[%clk 0:04:22.9]} 11. Bxc6
{[%clk 0:03:41.7]} 11... Nxc6 {[%clk 0:04:21.4]} 12. Nxc6 {[%clk 0:03:37]} 12...
bxc6 {[%clk 0:04:19.5]} 13. Qf3 {[%clk 0:03:15.1]} 13... Qf6 {[%clk 0:04:15.2]}
14. Qxf6 {[%clk 0:03:09.4]} 14... gxf6 {[%clk 0:04:13.6]} 15. Bh6 {[%clk
0:02:59]} 15... Re8 {[%clk 0:04:10.6]} 16. Re3 {[%clk 0:02:56.2]} 16... Bxe3
{[%clk 0:04:07.4]} 17. fxe3 {[%clk 0:02:52.8]} 17... e5 {[%clk 0:04:04.1]} 18.
Rf1 {[%clk 0:02:50.7]} 18... Re6 {[%clk 0:04:00]} 19. Rf3 {[%clk 0:02:48.1]}
19... Kh8 {[%clk 0:03:48.5]} 20. Rg3 {[%clk 0:02:44.6]} 20... f5 {[%clk
0:03:35.5]} 21. Bg7+ {[%clk 0:02:33.8]} 21... Kg8 {[%clk 0:03:33.7]} 22. Bxe5+
{[%clk 0:02:29.8]} 22... Rg6 {[%clk 0:03:30.8]} 23. Rf3 {[%clk 0:02:13.9]} 23...
f6 {[%clk 0:03:28.2]} 24. Bd4 {[%clk 0:02:06.2]} 24... Kf7 {[%clk 0:03:24.7]}
25. Rxf5 {[%clk 0:02:03.8]} 25... Bxf5 {[%clk 0:03:21.2]} 26. e4 {[%clk
0:01:56.1]} 26... Bh3 {[%clk 0:03:16.9]} 27. g3 {[%clk 0:01:51.1]} 27... Rag8
{[%clk 0:03:13]} 28. Kf2 {[%clk 0:01:46.8]} 28... dxe4 {[%clk 0:03:10.1]} 29.
Nxe4 {[%clk 0:01:44.1]} 29... Ke6 {[%clk 0:03:05.9]} 30. Nc5+ {[%clk 0:01:41]}
30... Kd5 {[%clk 0:03:04.6]} 31. Be3 {[%clk 0:01:30.9]} 31... Bc8 {[%clk
0:03:02.3]} 32. Nd3 {[%clk 0:01:14.3]} 32... Rg4 {[%clk 0:02:46.5]} 33. Nf4+
{[%clk 0:01:08]} 33... Rxf4+ {[%clk 0:02:43.7]} 34. gxf4 {[%clk 0:01:04.4]}
34... Ke4 {[%clk 0:02:40.8]} 35. h4 {[%clk 0:00:56.3]} 35... Be6 {[%clk
0:02:37]} 36. h5 {[%clk 0:00:53.4]} 36... Bxa2 {[%clk 0:02:33.9]} 37. Bxa7
{[%clk 0:00:46.5]} 37... Ra8 {[%clk 0:02:31.8]} 38. Bc5 {[%clk 0:00:40.1]} 38...
Kxf4 {[%clk 0:02:28.6]} 39. Bd6+ {[%clk 0:00:32.3]} 39... Kg4 {[%clk 0:02:24.3]}
0-1

[Event "Live Chess"]
[Site "Chess.com"]
[Date "2023.05.20"]
[Round "-"]
[White "Horseymobile"]
[Black "toog"]
[Result "0-1"]
[WhiteElo "1250"]
[BlackElo "2638"]
[TimeControl "300"]
[EndTime "10:14:57 PDT"]
[Termination "toog won by resignation"]

1. d4 {[%clk 0:04:59.2]} 1... e6 {[%clk 0:04:58.1]} 2. e4 {[%clk 0:04:57]} 2...
d5 {[%clk 0:04:56.3]} 3. e5 {[%clk 0:04:52]} 3... c5 {[%clk 0:04:54.2]} 4. Nf3
{[%clk 0:04:49.4]} 4... Nc6 {[%clk 0:04:54.1]} 5. Bf4 {[%clk 0:04:35.6]} 5...
Qb6 {[%clk 0:04:50.3]} 6. Nc3 {[%clk 0:04:21.4]} 6... cxd4 {[%clk 0:04:45.9]} 7.
Na4 {[%clk 0:04:20]} 7... Qa5+ {[%clk 0:04:43.8]} 8. Nc3 {[%clk 0:04:11.9]} 8...
dxc3 {[%clk 0:04:43.7]} 9. b3 {[%clk 0:04:06.4]} 9... Bd7 {[%clk 0:04:41.1]} 10.
Bd3 {[%clk 0:04:03.8]} 10... Nge7 {[%clk 0:04:39.8]} 11. O-O {[%clk 0:04:03]}
11... Ng6 {[%clk 0:04:39.4]} 0-1

[Event "Live Chess"]
[Site "Chess.com"]
[Date "2023.05.20"]
[Round "-"]
[White "grillage"]
[Black "GEMdzq"]
[Result "0-1"]
[WhiteElo "1845"]
[BlackElo "2278"]
[TimeControl "300"]
[EndTime "10:15:10 PDT"]
[Termination "GEMdzq won on time"]

1. d4 {[%clk 0:04:58.9]} 1... Nf6 {[%clk 0:04:58.1]} 2. Nc3 {[%clk 0:04:56.9]}
2... e6 {[%clk 0:04:56.6]} 3. Bf4 {[%clk 0:04:52.6]} 3... c5 {[%clk 0:04:52.7]}
4. d5 {[%clk 0:04:43.9]} 4... exd5 {[%clk 0:04:28.7]} 5. Nxd5 {[%clk 0:04:41.8]}
5... Nxd5 {[%clk 0:04:27.7]} 6. Qxd5 {[%clk 0:04:40.4]} 6... Nc6 {[%clk
0:04:17.7]} 7. Nf3 {[%clk 0:04:12.9]} 7... Be7 {[%clk 0:04:11.8]} 8. e3 {[%clk
0:03:59]} 8... d6 {[%clk 0:03:59.8]} 9. O-O-O {[%clk 0:03:56]} 9... Be6 {[%clk
0:03:56.7]} 10. Qd2 {[%clk 0:03:50.5]} 10... d5 {[%clk 0:03:48.5]} 11. Kb1
{[%clk 0:03:47.2]} 11... h6 {[%clk 0:03:45.1]} 12. Bb5 {[%clk 0:03:42.8]} 12...
O-O {[%clk 0:03:42.8]} 13. h3 {[%clk 0:03:32.7]} 13... Qb6 {[%clk 0:03:27.8]}
14. Be2 {[%clk 0:03:24.6]} 14... Bf6 {[%clk 0:03:21.3]} 15. c3 {[%clk
0:03:20.2]} 15... a5 {[%clk 0:03:20.2]} 16. g4 {[%clk 0:03:18.3]} 16... g5
{[%clk 0:02:53.4]} 17. Bg3 {[%clk 0:03:01.4]} 17... a4 {[%clk 0:02:44.3]} 18. h4
{[%clk 0:02:57.7]} 18... a3 {[%clk 0:02:36.7]} 19. b3 {[%clk 0:02:54.8]} 19...
c4 {[%clk 0:02:06.8]} 20. Nd4 {[%clk 0:02:30.5]} 20... cxb3 {[%clk 0:01:50.8]}
21. axb3 {[%clk 0:02:28]} 21... Nxd4 {[%clk 0:01:46.7]} 22. exd4 {[%clk
0:02:26.9]} 22... Qxb3+ {[%clk 0:01:45.4]} 23. Ka1 {[%clk 0:02:25.5]} 23... Rfc8
{[%clk 0:01:38.3]} 24. Rc1 {[%clk 0:02:17.2]} 24... b5 {[%clk 0:01:18.7]} 25.
hxg5 {[%clk 0:02:15.1]} 25... hxg5 {[%clk 0:01:15.6]} 26. Be5 {[%clk 0:01:49.9]}
26... Qb2+ {[%clk 0:00:58.6]} 27. Qxb2 {[%clk 0:01:46.7]} 27... axb2+ {[%clk
0:00:58.5]} 28. Kxb2 {[%clk 0:01:45.9]} 28... Bxe5 {[%clk 0:00:57.9]} 29. dxe5
{[%clk 0:01:44.3]} 29... d4 {[%clk 0:00:38.3]} 30. Bf3 {[%clk 0:00:42.6]} 30...
Ra2+ {[%clk 0:00:34.4]} 31. Kb1 {[%clk 0:00:36]} 31... dxc3 {[%clk 0:00:33.5]}
32. Rc2 {[%clk 0:00:24.9]} 32... Rxc2 {[%clk 0:00:27.8]} 33. Kxc2 {[%clk
0:00:23.4]} 33... b4 {[%clk 0:00:27.5]} 34. Rb1 {[%clk 0:00:16.9]} 34... b3+
{[%clk 0:00:26.8]} 35. Kd3 {[%clk 0:00:14]} 35... c2 {[%clk 0:00:23.4]} 36. Rc1
{[%clk 0:00:13.1]} 36... b2 {[%clk 0:00:22.5]} 37. Rxc2 {[%clk 0:00:12.1]} 37...
Rd8+ {[%clk 0:00:19.8]} 38. Ke3 {[%clk 0:00:04.6]} 38... b1=Q {[%clk 0:00:18.7]}
39. Rc6 {[%clk 0:00:01.4]} 39... Qe1+ {[%clk 0:00:17.5]} 0-1

[Event "Live Chess"]
[Site "Chess.com"]
[Date "2023.05.20"]
[Round "-"]
[White "lucaskk818"]
[Black "SimpleHarmonic1"]
[Result "0-1"]
[WhiteElo "1863"]
[BlackElo "2059"]
[TimeControl "300"]
[EndTime "10:15:11 PDT"]
[Termination "SimpleHarmonic1 won by resignation"]

1. d4 {[%clk 0:04:58.6]} 1... d5 {[%clk 0:04:58.3]} 2. c4 {[%clk 0:04:58.2]}
2... e6 {[%clk 0:04:55.2]} 3. Nf3 {[%clk 0:04:57.7]} 3... dxc4 {[%clk
0:04:52.2]} 4. e3 {[%clk 0:04:55.5]} 4... a6 {[%clk 0:04:46.3]} 5. a4 {[%clk
0:04:52.7]} 5... c5 {[%clk 0:04:46.1]} 6. Bxc4 {[%clk 0:04:51]} 6... Nf6 {[%clk
0:04:44.1]} 7. O-O {[%clk 0:04:49.3]} 7... Be7 {[%clk 0:04:43.7]} 8. dxc5 {[%clk
0:04:47.3]} 8... O-O {[%clk 0:04:42]} 9. b4 {[%clk 0:04:40.9]} 9... a5 {[%clk
0:04:33.8]} 10. Ba3 {[%clk 0:04:25.3]} 10... axb4 {[%clk 0:04:32]} 11. Bxb4
{[%clk 0:04:25.2]} 11... Nc6 {[%clk 0:04:31.1]} 12. Bc3 {[%clk 0:04:20.2]} 12...
Bxc5 {[%clk 0:04:29]} 13. Ne5 {[%clk 0:04:08.3]} 13... Nxe5 {[%clk 0:04:19.1]}
14. Bxe5 {[%clk 0:04:08.2]} 14... Qe7 {[%clk 0:03:53.2]} 15. Nc3 {[%clk
0:04:05.4]} 15... Rd8 {[%clk 0:03:44.7]} 16. Qc2 {[%clk 0:04:04.8]} 16... b6
{[%clk 0:03:40.9]} 17. Rfd1 {[%clk 0:03:51.6]} 17... Bb7 {[%clk 0:03:39.3]} 18.
Nb5 {[%clk 0:03:35]} 18... Nd5 {[%clk 0:03:21.1]} 19. Bc3 {[%clk 0:03:00.3]}
19... Qg5 {[%clk 0:03:00.4]} 20. Bxd5 {[%clk 0:02:46]} 20... Bxd5 {[%clk
0:02:52.2]} 21. e4 {[%clk 0:02:37.9]} 21... Qg6 {[%clk 0:02:51]} 22. Rxd5 {[%clk
0:02:10]} 22... exd5 {[%clk 0:02:46.6]} 23. Nc7 {[%clk 0:02:04.7]} 23... Rac8
{[%clk 0:02:42]} 24. Nb5 {[%clk 0:01:56.4]} 24... dxe4 {[%clk 0:02:34.3]} 25.
Re1 {[%clk 0:01:49.6]} 25... e3 {[%clk 0:02:29.4]} 26. fxe3 {[%clk 0:01:45.1]}
26... Qxc2 {[%clk 0:02:25.4]} 0-1

[Event "Live Chess"]
[Site "Chess.com"]
[Date "2023.05.20"]
[Round "-"]
[White "CheckThis4"]
[Black "LiamBellwood"]
[Result "1-0"]
[WhiteElo "2546"]
[BlackElo "2092"]
[TimeControl "300"]
[EndTime "10:15:12 PDT"]
[Termination "CheckThis4 won by resignation"]

1. c4 {[%clk 0:04:55.9]} 1... e6 {[%clk 0:04:59.9]} 2. Nf3 {[%clk 0:04:52.8]}
2... f5 {[%clk 0:04:59.5]} 3. h3 {[%clk 0:04:43.1]} 3... Nf6 {[%clk 0:04:59.1]}
4. g4 {[%clk 0:04:42]} 4... b6 {[%clk 0:04:49.7]} 5. g5 {[%clk 0:04:38.4]} 5...
Ne4 {[%clk 0:04:45.3]} 6. h4 {[%clk 0:04:27.4]} 6... Bc5 {[%clk 0:04:33.8]} 7.
e3 {[%clk 0:04:20.3]} 7... Bb7 {[%clk 0:04:26.5]} 8. a3 {[%clk 0:04:12]} 8... a5
{[%clk 0:04:24.7]} 9. d3 {[%clk 0:04:07.1]} 9... O-O {[%clk 0:03:56.6]} 10. dxe4
{[%clk 0:04:01.6]} 10... Bxe4 {[%clk 0:03:43.2]} 11. Nc3 {[%clk 0:03:53]} 11...
Bb7 {[%clk 0:03:41.5]} 12. Bg2 {[%clk 0:03:46.5]} 12... d6 {[%clk 0:03:28]} 13.
Qe2 {[%clk 0:03:37.8]} 13... e5 {[%clk 0:03:14.2]} 14. O-O {[%clk 0:03:27.6]}
14... f4 {[%clk 0:02:50.8]} 15. exf4 {[%clk 0:03:24.7]} 15... exf4 {[%clk
0:02:45.5]} 16. Nd5 {[%clk 0:03:18.6]} 1-0

[Event "Live Chess"]
[Site "Chess.com"]
[Date "2023.05.20"]
[Round "-"]
[White "LaupMiths"]
[Black "ACx04"]
[Result "1-0"]
[WhiteElo "1827"]
[BlackElo "433"]
[TimeControl "300"]
[EndTime "10:15:18 PDT"]
[Termination "LaupMiths won by checkmate"]

1. e4 {[%clk 0:04:54.5]} 1... e5 {[%clk 0:04:58.5]} 2. Nf3 {[%clk 0:04:52.5]}
2... Nc6 {[%clk 0:04:57]} 3. Bb5 {[%clk 0:04:51]} 3... h6 {[%clk 0:04:54.7]} 4.
O-O {[%clk 0:04:49.5]} 4... Nf6 {[%clk 0:04:53.5]} 5. Re1 {[%clk 0:04:47.6]}
5... d5 {[%clk 0:04:48]} 6. exd5 {[%clk 0:04:45.8]} 6... Nxd5 {[%clk 0:04:46.8]}
7. Nxe5 {[%clk 0:04:42.2]} 7... a6 {[%clk 0:04:43]} 8. Nxc6+ {[%clk 0:04:40.3]}
8... Qe7 {[%clk 0:04:35.4]} 9. Nxe7+ {[%clk 0:04:38.7]} 9... c6 {[%clk
0:04:30.1]} 10. Nxd5+ {[%clk 0:04:37.1]} 10... Kd7 {[%clk 0:04:26.3]} 11. Nb6+
{[%clk 0:04:35.7]} 11... Kc7 {[%clk 0:04:25]} 12. Nxa8+ {[%clk 0:04:34.7]} 12...
Kd6 {[%clk 0:04:16.8]} 13. Bc4 {[%clk 0:04:32]} 13... g5 {[%clk 0:04:14.6]} 14.
Qf3 {[%clk 0:04:29.5]} 14... Be6 {[%clk 0:03:34.2]} 15. Bxe6 {[%clk 0:04:24.6]}
15... fxe6 {[%clk 0:03:31.4]} 16. Qf7 {[%clk 0:04:18.7]} 16... e5 {[%clk
0:03:27.6]} 17. d4 {[%clk 0:04:14.4]} 17... exd4 {[%clk 0:03:25.7]} 18. Qe6+
{[%clk 0:04:11.3]} 18... Kc5 {[%clk 0:03:24.1]} 19. Re5+ {[%clk 0:04:07]} 19...
Kb4 {[%clk 0:03:18.9]} 20. Qb3# {[%clk 0:04:06.6]} 1-0

[Event "Live Chess"]
[Site "Chess.com"]
[Date "2023.05.20"]
[Round "-"]
[White "Nazarenko_vital"]
[Black "AKRJourno"]
[Result "1-0"]
[WhiteElo "1588"]
[BlackElo "750"]
[TimeControl "300"]
[EndTime "10:15:18 PDT"]
[Termination "Nazarenko_vital won by resignation"]

1. e4 {[%clk 0:04:57.3]} 1... c5 {[%clk 0:04:59.3]} 2. c3 {[%clk 0:04:54.9]}
2... e6 {[%clk 0:04:58.4]} 3. d4 {[%clk 0:04:53.7]} 3... d5 {[%clk 0:04:51.2]}
4. e5 {[%clk 0:04:51.5]} 4... c4 {[%clk 0:04:49.8]} 5. b3 {[%clk 0:04:43.6]}
5... Qa5 {[%clk 0:04:44.6]} 6. bxc4 {[%clk 0:04:38.4]} 6... Qxc3+ {[%clk
0:04:42.7]} 7. Nxc3 {[%clk 0:04:36.4]} 7... Kd7 {[%clk 0:04:36.4]} 8. Qa4+
{[%clk 0:04:34.7]} 8... Kc7 {[%clk 0:04:34.5]} 9. Nb5+ {[%clk 0:04:30.8]} 9...
Kb6 {[%clk 0:04:32.7]} 10. Rb1 {[%clk 0:04:26]} 10... a6 {[%clk 0:04:29.9]} 11.
Nd6+ {[%clk 0:04:20.9]} 11... Kc7 {[%clk 0:04:28.4]} 12. Nxf7 {[%clk 0:04:15.4]}
1-0

[Event "Live Chess"]
[Site "Chess.com"]
[Date "2023.05.20"]
[Round "-"]
[White "Pablo_dmp"]
[Black "wadsy27"]
[Result "0-1"]
[WhiteElo "1870"]
[BlackElo "2589"]
[TimeControl "300"]
[EndTime "10:15:24 PDT"]
[Termination "wadsy27 won by resignation"]

1. e4 {[%clk 0:04:59]} 1... c6 {[%clk 0:04:57.9]} 2. d4 {[%clk 0:04:57.7]} 2...
d5 {[%clk 0:04:57.8]} 3. e5 {[%clk 0:04:57.3]} 3... c5 {[%clk 0:04:55.8]} 4.
dxc5 {[%clk 0:04:56.2]} 4... e6 {[%clk 0:04:54]} 5. a3 {[%clk 0:04:46.9]} 5...
Bxc5 {[%clk 0:04:51.7]} 6. b4 {[%clk 0:04:45.9]} 6... Be7 {[%clk 0:04:50.8]} 7.
Bd3 {[%clk 0:04:42.2]} 7... a5 {[%clk 0:04:46]} 8. b5 {[%clk 0:04:32.5]} 8...
Qc7 {[%clk 0:04:44.2]} 9. Nf3 {[%clk 0:04:23.5]} 9... Nd7 {[%clk 0:04:34.2]} 10.
Qe2 {[%clk 0:04:15.4]} 10... Nh6 {[%clk 0:04:29.1]} 11. Bxh6 {[%clk 0:03:54.4]}
11... gxh6 {[%clk 0:04:29]} 12. Qe3 {[%clk 0:03:53.7]} 12... b6 {[%clk
0:04:19.8]} 13. Nbd2 {[%clk 0:03:36.9]} 13... Bb7 {[%clk 0:04:16.9]} 14. c4
{[%clk 0:03:23.9]} 14... Bg5 {[%clk 0:03:54.3]} 15. Nxg5 {[%clk 0:03:15.1]}
15... hxg5 {[%clk 0:03:54.2]} 16. Qxg5 {[%clk 0:02:58.1]} 16... Qxe5+ {[%clk
0:03:51.3]} 17. Qxe5 {[%clk 0:02:56.4]} 17... Nxe5 {[%clk 0:03:51.2]} 18. Be2
{[%clk 0:02:53.8]} 18... dxc4 {[%clk 0:03:49.1]} 19. f3 {[%clk 0:02:32.9]} 19...
c3 {[%clk 0:03:45.1]} 20. Ne4 {[%clk 0:02:18.9]} 20... Bxe4 {[%clk 0:03:43.6]}
21. fxe4 {[%clk 0:02:18.8]} 21... Ke7 {[%clk 0:03:42.2]} 22. Rc1 {[%clk
0:02:15.5]} 22... Rac8 {[%clk 0:03:41.5]} 23. O-O {[%clk 0:02:14]} 23... Rhd8
{[%clk 0:03:41.1]} 24. Bh5 {[%clk 0:02:07.7]} 24... Rd2 {[%clk 0:03:37.9]} 25.
Rf2 {[%clk 0:02:06.5]} 25... Rxf2 {[%clk 0:03:32.4]} 26. Kxf2 {[%clk 0:02:06.4]}
26... Nd3+ {[%clk 0:03:31.8]} 0-1

[Event "Live Chess"]
[Site "Chess.com"]
[Date "2023.05.20"]
[Round "-"]
[White "booktrunk"]
[Black "onemoretime1975"]
[Result "0-1"]
[WhiteElo "1360"]
[BlackElo "1910"]
[TimeControl "300"]
[EndTime "10:15:26 PDT"]
[Termination "onemoretime1975 won by resignation"]

1. d4 {[%clk 0:04:55.9]} 1... d5 {[%clk 0:04:58.2]} 2. Nf3 {[%clk 0:04:54.1]}
2... Nf6 {[%clk 0:04:56.4]} 3. Bf4 {[%clk 0:04:52.4]} 3... e6 {[%clk 0:04:51.4]}
4. h3 {[%clk 0:04:51.3]} 4... Bd6 {[%clk 0:04:49.5]} 5. Bxd6 {[%clk 0:04:49.1]}
5... Qxd6 {[%clk 0:04:48]} 6. e3 {[%clk 0:04:46]} 6... c5 {[%clk 0:04:43.8]} 7.
Bb5+ {[%clk 0:04:42.6]} 7... Bd7 {[%clk 0:04:41.2]} 8. Bxd7+ {[%clk 0:04:41.6]}
8... Nbxd7 {[%clk 0:04:39.3]} 9. dxc5 {[%clk 0:04:40]} 9... Nxc5 {[%clk
0:04:36.5]} 10. O-O {[%clk 0:04:37.1]} 10... O-O {[%clk 0:04:33.2]} 11. Qd4
{[%clk 0:04:35]} 11... Nce4 {[%clk 0:04:26.3]} 12. c3 {[%clk 0:04:30.8]} 12...
a6 {[%clk 0:04:22]} 13. Rd1 {[%clk 0:04:28.1]} 13... Rac8 {[%clk 0:04:19.8]} 14.
Qe5 {[%clk 0:04:19.6]} 14... Qb6 {[%clk 0:04:05.4]} 15. Nbd2 {[%clk 0:03:57.7]}
15... Qxb2 {[%clk 0:03:52.6]} 16. Nxe4 {[%clk 0:03:56.3]} 16... Nxe4 {[%clk
0:03:46.7]} 17. Rab1 {[%clk 0:03:50]} 17... Qxc3 {[%clk 0:03:37.8]} 18. Rdc1
{[%clk 0:03:48.6]} 18... Qxe5 {[%clk 0:03:28.5]} 19. Nxe5 {[%clk 0:03:46]} 19...
Nd2 {[%clk 0:03:18]} 20. Ra1 {[%clk 0:03:36.9]} 20... b5 {[%clk 0:03:09.1]} 21.
Rd1 {[%clk 0:03:35.9]} 21... Nc4 {[%clk 0:03:05.6]} 22. Nd3 {[%clk 0:03:23.8]}
22... a5 {[%clk 0:02:58.3]} 23. Rab1 {[%clk 0:03:19.8]} 23... b4 {[%clk
0:02:56.8]} 24. g3 {[%clk 0:03:12.5]} 24... Na3 {[%clk 0:02:54.6]} 25. Rb3
{[%clk 0:03:07.9]} 25... Rc2 {[%clk 0:02:47.3]} 26. Nc1 {[%clk 0:02:57.1]} 26...
Rfc8 {[%clk 0:02:42.9]} 27. Nd3 {[%clk 0:02:53.5]} 27... Rxa2 {[%clk 0:02:37.8]}
28. Nb2 {[%clk 0:02:49.1]} 28... Nc4 {[%clk 0:02:28.9]} 29. Nd3 {[%clk 0:02:42]}
29... Ra3 {[%clk 0:02:06.7]} 30. Rbb1 {[%clk 0:02:35]} 30... Nd6 {[%clk
0:01:58]} 31. Ne5 {[%clk 0:02:33]} 31... f6 {[%clk 0:01:50.1]} 32. Nf3 {[%clk
0:02:28.8]} 32... Ra2 {[%clk 0:01:44.7]} 33. Nd4 {[%clk 0:02:25.5]} 33... Kf7
{[%clk 0:01:42.5]} 34. Rd3 {[%clk 0:02:19.8]} 34... Ne4 {[%clk 0:01:34.7]} 35.
f3 {[%clk 0:02:15.3]} 35... Nd2 {[%clk 0:01:32]} 36. Rd1 {[%clk 0:02:03.8]}
36... Nc4 {[%clk 0:01:27.2]} 37. Nb5 {[%clk 0:02:01.4]} 37... Nb2 {[%clk
0:01:23.2]} 38. R1d2 {[%clk 0:01:58.6]} 38... Ra1+ {[%clk 0:01:21.2]} 39. Kg2
{[%clk 0:01:51.9]} 39... Nxd3 {[%clk 0:01:20.1]} 40. Rxd3 {[%clk 0:01:51.2]}
40... Rc2+ {[%clk 0:01:19.7]} 0-1

[Event "Live Chess"]
[Site "Chess.com"]
[Date "2023.05.20"]
[Round "-"]
[White "vovanada"]
[Black "JackRudd"]
[Result "0-1"]
[WhiteElo "806"]
[BlackElo "2400"]
[TimeControl "300"]
[EndTime "10:15:26 PDT"]
[Termination "JackRudd won by checkmate"]

1. d4 {[%clk 0:04:55.8]} 1... Nf6 {[%clk 0:04:56.2]} 2. Bf4 {[%clk 0:04:51.6]}
2... c5 {[%clk 0:04:54.9]} 3. c3 {[%clk 0:04:47.6]} 3... Nc6 {[%clk 0:04:53.2]}
4. e3 {[%clk 0:04:45.4]} 4... cxd4 {[%clk 0:04:41.7]} 5. cxd4 {[%clk 0:04:42.5]}
5... Qb6 {[%clk 0:04:22.4]} 6. b3 {[%clk 0:04:37.7]} 6... e6 {[%clk 0:04:16.6]}
7. Nf3 {[%clk 0:04:28.3]} 7... Bb4+ {[%clk 0:04:12.5]} 8. Nbd2 {[%clk
0:04:26.3]} 8... Nd5 {[%clk 0:04:08.6]} 9. Bg3 {[%clk 0:04:21.2]} 9... f5 {[%clk
0:04:07.1]} 10. Ne5 {[%clk 0:04:18.6]} 10... O-O {[%clk 0:04:01.6]} 11. Bd3
{[%clk 0:04:01.3]} 11... f4 {[%clk 0:03:53.7]} 12. exf4 {[%clk 0:03:37.4]} 12...
Qxd4 {[%clk 0:03:47.5]} 13. Qh5 {[%clk 0:03:11.5]} 13... Qxa1+ {[%clk
0:03:45.5]} 14. Ke2 {[%clk 0:03:09.5]} 14... Nd4# {[%clk 0:03:44]} 0-1

[Event "Live Chess"]
[Site "Chess.com"]
[Date "2023.05.20"]
[Round "-"]
[White "domrobson"]
[Black "lamteama1"]
[Result "0-1"]
[WhiteElo "1718"]
[BlackElo "1118"]
[TimeControl "300"]
[EndTime "10:15:31 PDT"]
[Termination "lamteama1 won by resignation"]

1. d4 {[%clk 0:04:58.7]} 1... d5 {[%clk 0:04:50.8]} 2. c4 {[%clk 0:04:57.9]}
2... dxc4 {[%clk 0:04:43.7]} 3. Nf3 {[%clk 0:04:54.3]} 3... c6 {[%clk
0:04:38.8]} 4. e3 {[%clk 0:04:45.3]} 4... Be6 {[%clk 0:04:34.4]} 5. a4 {[%clk
0:04:41.8]} 5... Nf6 {[%clk 0:04:29.1]} 6. Nc3 {[%clk 0:04:38.7]} 6... Qa5
{[%clk 0:04:21.4]} 7. Bd2 {[%clk 0:04:36.4]} 7... Qf5 {[%clk 0:04:12.2]} 8. Be2
{[%clk 0:04:31]} 8... Nbd7 {[%clk 0:04:04.7]} 9. O-O {[%clk 0:04:28.9]} 9...
O-O-O {[%clk 0:03:58.9]} 10. a5 {[%clk 0:03:50.8]} 10... g5 {[%clk 0:03:53.1]}
11. Qa4 {[%clk 0:03:46.1]} 11... g4 {[%clk 0:03:46.8]} 12. Ne1 {[%clk
0:03:43.7]} 12... a6 {[%clk 0:03:40.6]} 13. Bxc4 {[%clk 0:03:33.6]} 13... Bxc4
{[%clk 0:03:28]} 14. Qxc4 {[%clk 0:03:31.8]} 14... e5 {[%clk 0:03:20.4]} 15. d5
{[%clk 0:03:28.5]} 15... Nc5 {[%clk 0:03:10.4]} 16. b4 {[%clk 0:03:16]} 16...
Nce4 {[%clk 0:03:00.5]} 17. Nxe4 {[%clk 0:03:11.5]} 17... Nxe4 {[%clk
0:02:51.4]} 18. Rd1 {[%clk 0:02:31]} 18... Rxd5 {[%clk 0:02:44.8]} 19. Qc2
{[%clk 0:02:26]} 19... Rg8 {[%clk 0:02:37.8]} 20. Bc1 {[%clk 0:02:19.7]} 20...
Rxd1 {[%clk 0:02:26.9]} 21. Qxd1 {[%clk 0:02:18.3]} 21... Bxb4 {[%clk
0:02:20.7]} 0-1

[Event "Live Chess"]
[Site "Chess.com"]
[Date "2023.05.20"]
[Round "-"]
[White "WelshTiger"]
[Black "Assassin696969"]
[Result "1-0"]
[WhiteElo "2433"]
[BlackElo "2112"]
[TimeControl "300"]
[EndTime "10:15:31 PDT"]
[Termination "WelshTiger won by resignation"]

1. e4 {[%clk 0:04:58.5]} 1... c6 {[%clk 0:04:59.1]} 2. d4 {[%clk 0:04:56.4]}
2... d5 {[%clk 0:04:58.3]} 3. f3 {[%clk 0:04:56.1]} 3... dxe4 {[%clk 0:04:56.1]}
4. fxe4 {[%clk 0:04:55.5]} 4... e5 {[%clk 0:04:56]} 5. Nf3 {[%clk 0:04:54.1]}
5... Bg4 {[%clk 0:04:55.5]} 6. Bc4 {[%clk 0:04:52.5]} 6... Nd7 {[%clk 0:04:55]}
7. c3 {[%clk 0:04:51]} 7... Ngf6 {[%clk 0:04:53.6]} 8. Bg5 {[%clk 0:04:49.5]}
8... Bd6 {[%clk 0:04:50.6]} 9. Nbd2 {[%clk 0:04:48]} 9... O-O {[%clk 0:04:49.5]}
10. O-O {[%clk 0:04:47.2]} 10... h6 {[%clk 0:04:48.3]} 11. Be3 {[%clk
0:04:45.4]} 11... b5 {[%clk 0:04:46.3]} 12. Bb3 {[%clk 0:04:44.1]} 12... Qe7
{[%clk 0:04:38.5]} 13. Qe1 {[%clk 0:04:34.2]} 13... c5 {[%clk 0:04:25.3]} 14. d5
{[%clk 0:04:30.8]} 14... c4 {[%clk 0:04:23]} 15. Bc2 {[%clk 0:04:29.9]} 15...
Bc5 {[%clk 0:04:19.9]} 16. Nh4 {[%clk 0:04:16.2]} 16... Kh7 {[%clk 0:03:53.8]}
17. h3 {[%clk 0:04:13.3]} 17... Bxe3+ {[%clk 0:03:38.8]} 18. Qxe3 {[%clk
0:04:13.2]} 18... Bh5 {[%clk 0:03:23.7]} 19. Kh1 {[%clk 0:04:03.9]} 19... Bg6
{[%clk 0:03:17.6]} 20. Nf5 {[%clk 0:03:39.8]} 20... Bxf5 {[%clk 0:03:11.1]} 21.
Rxf5 {[%clk 0:03:39.7]} 21... g6 {[%clk 0:03:01.5]} 22. Rf2 {[%clk 0:03:34.2]}
22... Nh5 {[%clk 0:02:57.6]} 23. Nf3 {[%clk 0:03:26.5]} 23... Nf4 {[%clk
0:02:40.1]} 24. Nxe5 {[%clk 0:03:18.7]} 24... Nxg2 {[%clk 0:02:26.5]} 25. Kxg2
{[%clk 0:03:13.4]} 25... Nxe5 {[%clk 0:02:13.1]} 26. Raf1 {[%clk 0:03:07.8]}
26... a5 {[%clk 0:02:04.8]} 27. Rf6 {[%clk 0:03:06.5]} 27... b4 {[%clk
0:02:01.2]} 28. Qd4 {[%clk 0:03:02.8]} 28... Rae8 {[%clk 0:01:50.3]} 29. Ba4
{[%clk 0:02:57.8]} 29... Rd8 {[%clk 0:01:44.8]} 30. d6 {[%clk 0:02:55.8]} 30...
Qb7 {[%clk 0:01:41.1]} 31. Qxe5 {[%clk 0:02:54.1]} 31... bxc3 {[%clk 0:01:36.3]}
32. bxc3 {[%clk 0:02:52.8]} 32... Qb2+ {[%clk 0:01:34.4]} 33. R1f2 {[%clk
0:02:52.2]} 33... Qc1 {[%clk 0:01:32.2]} 34. Rxf7+ {[%clk 0:02:49.7]} 1-0